bitfinex-derivatives/quotes_ETHF0:USTF0_20220106
["timestamp","ask_amount","ask_price","bid_price","bid_amount"]
[1641487514755,13.037182,3394.1,3393.6,0.397182]
[1641487515155,2.97373944,3393.7,3393.2,0.74326758]
[1641487515353,1.5,3393.3,3392.2,1.85817556]
[1641487515655,1.5,3393.3,3391.2,0.445]
[1641487515656,1.5,3392.7,3392.1,0.62435089]
[1641487515853,0.397182,3392.6,3392.1,0.62435089]
[1641487516057,1.184482,3392.6,3392.1,0.62435089]
[1641487516456,0.7873,3392.6,3392.2,0.397182]
[1641487516654,2.00479,3393.3,3392.5,2.00479]
[1641487516854,2.00479,3393.3,3392.6,0.397182]
[1641487516855,0.397182,3393.2,3392.6,0.397182]
[1641487517454,2.00479,3393.3,3392.6,0.397182]
[1641487517657,31.072,3394.1,3392.6,0.397182]
[1641487517856,2.48236725,3394.6,3392.6,0.397182]
[1641487518357,0.98236725,3394.6,3393.5,1.5]
[1641487518558,0.397182,3394.1,3393.5,1.052782]
[1641487518960,1.5,3393.9,3393.5,0.6556]
[1641487519159,0.397182,3393.8,3393.5,0.6556]
[1641487519358,0.459982,3393.7,3393.5,0.6556]
[1641487519559,0.459982,3393.7,3393.2,2.00479]
[1641487519759,0.397182,3393.7,3393.2,2.401972]
[1641487520162,2.00479,3394.3,3393.2,2.401972]
[1641487520760,2.00479,3394.3,3393.2,3.282172]
[1641487523463,2.00479,3394.3,3393.5,1.5]
[1641487523861,2.00479,3394.3,3393.6,0.397182]
[1641487524063,31.4661,3395.0,3393.6,0.397182]
[1641487524662,2.00479,3394.9,3394.1,2.00479]
[1641487524863,0.397182,3394.8,3394.1,2.85749]
[1641487526367,0.397182,3394.8,3394.1,3.254672]
[1641487527566,0.98236725,3394.5,3394.2,0.46788945]
[1641487527766,0.459982,3394.4,3394.2,0.46788945]
[1641487527969,1.5,3394.3,3394.2,0.46788945]
[1641487528168,13.97531078,3394.3,3393.5,1.85817556]
[1641487528367,11.49999999,3393.6,3393.2,2.47756741]
[1641487528569,24.13999999,3393.3,3393.0,3.06237727]
[1641487528770,12.64,3393.0,3392.2,3.75620348]
[1641487528972,24.13999999,3392.3,3392.2,3.75620348]
[1641487529171,26.25064347,3392.3,3392.2,2.19542148]
[1641487529374,12.64,3391.4,3391.2,4.66045539]
[1641487529571,1.5,3391.3,3391.2,4.66045539]
[1641487529773,1.5,3391.3,3391.2,4.60665539]
[1641487529971,1.5,3391.3,3391.2,4.45505539]
[1641487530175,1.5,3391.3,3390.7,5.30308171]
[1641487530372,1.5,3390.8,3390.7,5.30308171]
[1641487530872,18.14958,3390.8,3390.7,5.30308171]
[1641487531073,18.14958,3390.8,3390.7,5.30108171]
[1641487531272,18.14958,3390.8,3390.2,6.06066481]
[1641487531477,1.5,3390.4,3390.3,2.49910889]
[1641487531673,14.972,3390.4,3390.3,2.25610889]
[1641487531873,27.90099999,3390.4,3390.3,2.25610889]
[1641487532274,63.45955784,3390.4,3390.3,2.25610889]
[1641487532475,53.45955785,3390.4,3390.3,2.03190889]
[1641487532674,55.46434785,3390.4,3390.3,1.25730889]
[1641487532876,21.38111881,3390.4,3389.5,2.40183206]
[1641487533176,2.83679,3390.4,3389.5,3.90183206]
[1641487533374,3.50479,3390.4,3389.5,2.40183206]
[1641487533574,1.47503721,3390.0,3389.5,2.40183206]
[1641487533777,2.00479,3390.4,3389.5,0.384472]
[1641487534376,14.64479,3390.4,3389.5,0.384472]
[1641487534777,2.00479,3389.6,3389.5,0.384472]
[1641487534976,2.00479,3389.6,3389.5,0.781654]
[1641487535377,2.00479,3389.6,3389.5,2.281654]
[1641487535581,1.13906619,3391.3,3389.5,2.281654]
[1641487535582,1.21239088,3390.2,3389.5,2.281654]
[1641487535785,0.9699127,3390.0,3389.7,1.5]
[1641487535979,0.9699127,3390.0,3389.8,0.397182]
[1641487536380,0.9699127,3390.0,3389.8,1.897182]
[1641487536780,0.9699127,3390.0,3389.8,0.397182]
[1641487536979,0.9699127,3390.0,3389.8,1.897182]
[1641487537181,2.00479,3390.4,3389.8,0.397182]
[1641487539487,1.5,3390.2,3388.6,2.00479]
[1641487539687,12.64,3390.3,3388.6,2.00479]
[1641487539886,1.47506549,3390.0,3388.9,1.5]
[1641487540288,12.64,3390.3,3388.9,1.5]
[1641487540588,2.00479,3390.4,3388.9,2.1972]
[1641487540789,2.00479,3390.4,3389.0,2.00479]
[1641487540992,2.00479,3390.4,3389.7,1.5]
[1641487541189,2.00479,3390.4,3389.8,0.781654]
[1641487542590,2.00479,3390.4,3389.8,1.442254]
[1641487543691,2.00479,3390.4,3389.8,0.781654]
[1641487545492,2.00479,3390.4,3390.1,1.5]
[1641487545691,2.00479,3390.8,3390.2,0.397182]
[1641487545891,0.9699127,3392.0,3390.7,1.5]
[1641487546092,1.47424132,3391.9,3390.7,0.7335]
[1641487546296,1.47424132,3391.9,3390.7,2.2335]
[1641487546895,2.00479,3391.5,3390.7,2.2335]
[1641487547096,2.00479,3391.5,3390.8,0.781654]
[1641487547696,2.00479,3391.5,3390.8,0.397182]
[1641487548296,1.47443043,3391.4,3390.4,2.00479]
[1641487548496,1.47443043,3391.4,3389.6,32.6139]
[1641487548695,15.39499,3391.5,3389.1,32.5216]
[1641487548899,2.00479,3390.5,3389.8,2.00479]
[1641487549097,2.61199,3390.5,3389.9,0.384472]
[1641487549495,2.61199,3390.5,3389.9,0.781654]
[1641487549697,2.61199,3390.5,3389.9,0.397182]
[1641487550598,1.5,3390.2,3389.0,32.6716]
[1641487550796,1.5,3390.2,3389.0,2.00479]
[1641487550997,2.00479,3389.7,3389.0,2.00479]
[1641487551197,2.84539,3389.7,3389.1,0.384472]
[1641487551696,2.84539,3389.7,3389.2,0.397182]
[1641487552297,2.00479,3389.7,3389.2,0.397182]
[1641487552496,2.00479,3390.5,3389.5,1.5]
[1641487552700,2.00479,3390.5,3389.5,0.7529]
[1641487552999,2.00479,3390.5,3389.6,2.00479]
[1641487554000,14.64479,3390.5,3389.6,2.00479]
[1641487556399,2.00479,3390.5,3389.6,2.00479]
[1641487558100,0.46872665,3390.4,3389.6,2.00479]
[1641487558301,0.9699127,3390.3,3390.0,1.5]
[1641487558900,0.9699127,3390.3,3390.1,0.397182]
[1641487559305,0.9699127,3390.6,3390.1,1.023682]
[1641487560504,0.9699127,3390.8,3390.3,1.5]
[1641487560704,0.9699127,3390.8,3390.4,0.397182]
[1641487560903,1.27e-05,3390.8,3390.7,1.5]
[1641487561103,1.27e-05,3390.8,3390.5,0.384472]
[1641487561303,1.27e-05,3390.8,3390.7,0.397182]
[1641487561506,1.21239088,3391.1,3390.7,0.397182]
[1641487561709,3.21718088,3391.2,3390.7,0.397182]
[1641487562707,3.21718088,3391.2,3390.5,0.384472]
[1641487562906,4.02678088,3391.2,3390.6,0.397182]
[1641487563106,1.68105777,3391.1,3390.6,0.397182]
[1641487563507,1.68105777,3391.1,3390.4,2.00479]
[1641487563707,1.68105777,3391.1,3390.5,0.397182]
[1641487564108,0.46866689,3391.0,3390.5,0.781654]
[1641487566610,0.46866689,3391.1,3390.5,0.781654]
[1641487567710,0.46866689,3391.1,3389.7,0.19994344]
[1641487567711,0.384419,3391.0,3389.7,0.19994344]
[1641487567911,1.5,3389.8,3389.4,2.46300053]
[1641487568110,0.6682,3389.8,3389.4,2.46300053]
[1641487568311,1.47536582,3389.5,3389.4,2.46300053]
[1641487568610,0.459982,3389.5,3389.4,2.46300053]
[1641487568812,14.97252329,3389.5,3389.4,2.46300053]
[1641487569014,18.98210329,3389.5,3389.4,2.46300053]
[1641487569315,6.34210329,3389.5,3389.4,2.46300053]
[1641487569613,4.866744,3389.5,3389.4,2.46300053]
[1641487569812,5.251163,3389.5,3389.4,2.46300053]
[1641487570022,5.71982989,3389.5,3388.1,2.00479]
[1641487570312,18.35982989,3389.5,3388.1,2.00479]
[1641487570913,2.00479,3388.9,3388.1,2.00479]
[1641487571112,2.58589,3388.9,3388.2,0.781654]
[1641487571314,2.983072,3388.9,3388.2,0.781654]
[1641487571513,2.983072,3388.9,3388.4,1.5]
[1641487571713,2.58589,3388.9,3388.5,0.397182]
[1641487572113,2.00479,3388.9,3388.5,0.397182]
[1641487573914,2.00479,3388.9,3388.3,2.46300053]
[1641487574114,2.76529,3388.9,3388.3,2.46300053]
[1641487574313,0.397182,3388.8,3388.3,2.46300053]
[1641487574916,0.397182,3388.8,3388.1,1.5]
[1641487575114,0.397182,3388.8,3387.7,4.46779053]
[1641487575115,2.00479,3388.5,3388.3,1.5]
[1641487575515,2.00479,3388.5,3388.1,0.781654]
[1641487577526,2.00479,3388.5,3387.8,1.87237986]
[1641487577727,0.397182,3388.4,3387.8,1.87237986]
[1641487577928,0.384419,3388.3,3387.8,1.87237986]
[1641487578127,0.384419,3388.3,3387.7,3.87716986]
[1641487578326,0.384419,3388.3,3387.8,0.384472]
[1641487578528,0.781601,3388.3,3387.7,3.87716986]
[1641487579327,0.781601,3388.3,3387.7,2.00479]
[1641487579731,0.781601,3388.3,3388.0,1.5]
[1641487580929,0.384419,3388.3,3388.0,1.5]
[1641487581729,2.00479,3388.5,3388.2,1.5]
[1641487581929,2.00479,3388.5,3388.4,1.5]
[1641487582130,2.00479,3388.9,3388.4,1.5]
[1641487582333,2.401972,3388.9,3388.8,1.5]
[1641487582532,2.401972,3388.9,3388.8,2.1464]
[1641487582831,0.384419,3389.1,3388.8,0.6464]
[1641487583430,0.459982,3389.0,3388.8,0.6464]
[1641487583631,0.384419,3389.1,3388.8,0.6464]
[1641487584032,0.397182,3389.0,3388.6,2.00479]
[1641487584234,0.397182,3389.0,3388.1,1.87237986]
[1641487584433,0.397182,3389.0,3388.2,1.87237986]
[1641487585034,0.397182,3389.0,3388.2,3.87716986]
[1641487585637,0.397182,3389.0,3388.2,2.00479]
[1641487587039,2.00479,3388.8,3388.2,2.00479]
[1641487587242,13.037182,3388.7,3388.2,2.00479]
[1641487587640,13.037182,3388.7,3387.7,2.00479]
[1641487587840,13.037182,3388.7,3387.7,3.50479]
[1641487588039,13.037182,3388.7,3387.7,2.00479]
[1641487588241,13.037182,3388.7,3387.7,3.50479]
[1641487588642,0.397182,3388.7,3387.7,3.50479]
[1641487589041,14.64479,3388.4,3387.7,2.00479]
[1641487589242,0.781601,3388.3,3387.3,2.00479]
[1641487589844,0.781601,3388.3,3387.6,1.5]
[1641487591044,2.00479,3388.0,3387.7,1.5]
[1641487591246,0.397182,3387.9,3387.3,2.00479]
[1641487591447,0.397182,3387.9,3387.6,1.5]
[1641487592045,0.397182,3387.9,3387.3,2.00479]
[1641487592246,0.459982,3387.8,3387.3,2.00479]
[1641487592449,0.397182,3387.7,3387.3,2.00479]
[1641487592649,0.384419,3387.6,3387.3,2.00479]
[1641487593048,0.857164,3387.5,3387.3,2.00479]
[1641487593250,0.384419,3387.6,3387.4,1.5]
[1641487593548,2.00479,3388.0,3387.3,2.00479]
[1641487594149,0.397182,3387.9,3387.3,2.00479]
[1641487594749,0.781601,3387.9,3387.3,2.00479]
[1641487597155,0.781601,3387.9,3387.3,2.389262]
[1641487597356,0.781601,3387.9,3387.3,2.786444]
[1641487598758,0.781601,3387.9,3387.3,2.401972]
[1641487599359,0.781601,3387.9,3387.3,4.286444]
[1641487599961,2.00479,3388.0,3387.8,1.5]
[1641487600158,2.00479,3388.0,3387.9,0.397182]
[1641487600361,2.00479,3388.4,3387.9,0.397182]
[1641487600557,2.00479,3388.4,3388.3,1.5]
[1641487600758,2.00479,3388.4,3388.3,2.477582]
[1641487600958,64.5494,3389.6,3388.3,0.977582]
[1641487601258,2.00479,3389.1,3388.3,2.982372]
[1641487601459,0.384419,3389.0,3388.3,2.982372]
[1641487601860,0.384419,3389.0,3388.7,1.5]
[1641487602658,0.384419,3389.0,3388.6,0.397182]
[1641487602860,2.00479,3389.1,3388.6,0.397182]
[1641487604263,2.00479,3389.1,3388.7,1.5]
[1641487604464,2.00479,3389.1,3388.8,0.397182]
[1641487605664,0.459982,3389.0,3388.8,0.397182]
[1641487605863,0.459982,3389.0,3388.0,2.00479]
[1641487606064,1.188682,3389.0,3388.4,0.397182]
[1641487606465,0.397182,3388.9,3388.4,0.397182]
[1641487606865,0.397182,3388.9,3388.0,2.00479]
[1641487607368,2.00479,3388.7,3388.0,2.00479]
[1641487607667,2.00479,3388.7,3388.1,0.781654]
[1641487607867,0.397182,3388.6,3388.1,0.781654]
[1641487608668,2.00479,3388.7,3388.2,1.5]
[1641487608868,2.00479,3389.1,3388.3,0.397182]
[1641487609468,0.397182,3389.0,3388.1,0.384472]
[1641487609670,0.397182,3389.0,3388.0,2.00479]
[1641487610270,13.037182,3389.0,3388.0,2.00479]
[1641487610470,1.5,3388.7,3387.1,34.785]
[1641487610674,1.5,3388.7,3387.1,33.285]
[1641487610869,12.64,3388.6,3387.1,33.285]
[1641487611070,14.14,3388.6,3387.1,33.285]
[1641487611275,2.00479,3388.2,3387.1,33.285]
[1641487611570,0.781601,3388.1,3387.0,33.65409]
[1641487612970,0.781601,3388.1,3387.2,1.5]
[1641487614472,0.781601,3388.1,3387.0,33.65409]
[1641487614673,13.421601,3388.1,3387.2,1.5]
[1641487614872,0.781601,3388.1,3387.0,33.65409]
[1641487615073,0.781601,3388.1,3387.2,1.5]
[1641487615271,0.781601,3388.1,3387.4,1.5]
[1641487615473,0.781601,3388.1,3387.0,2.00479]
[1641487615973,13.421601,3388.1,3387.0,2.00479]
[1641487616273,14.921601,3388.1,3387.0,2.00479]
[1641487617273,2.00479,3387.5,3387.0,2.00479]
[1641487617479,0.384419,3387.4,3387.0,2.00479]
[1641487617675,0.781601,3387.4,3387.0,2.00479]
[1641487618679,0.781601,3387.4,3387.0,3.50479]
[1641487618887,0.397182,3387.4,3387.2,1.5]
[1641487619087,0.397182,3387.4,3387.2,0.6184]
[1641487619687,2.00479,3387.5,3387.2,0.6184]
[1641487619890,2.00479,3387.5,3387.3,0.397182]
[1641487620089,2.00479,3388.2,3387.3,0.397182]
[1641487620896,0.9590892,3389.2,3388.0,1.5]
[1641487621091,0.9590892,3389.2,3388.1,1.5]
[1641487621391,2.00479,3388.9,3388.1,2.00479]
[1641487621691,2.00479,3388.9,3388.0,0.6468]
[1641487621692,0.781601,3388.8,3388.0,0.6468]
[1641487621891,13.421601,3388.8,3387.7,2.00479]
[1641487622292,13.421601,3388.8,3387.7,3.50479]
[1641487622591,0.781601,3388.8,3387.7,3.50479]
[1641487622791,13.421601,3388.8,3387.7,2.00479]
[1641487623195,0.781601,3388.8,3387.7,2.00479]
[1641487623396,0.781601,3388.8,3387.8,1.5]
[1641487623594,0.781601,3388.8,3387.8,2.1283]
[1641487623997,0.781601,3388.8,3387.9,1.5]
[1641487624394,0.384419,3388.8,3387.8,0.6283]
[1641487625095,0.384419,3388.8,3387.7,2.00479]
[1641487625295,0.384419,3388.8,3387.7,3.48000564]
[1641487625497,1.5,3387.8,3387.7,2.00479]
[1641487625695,0.384419,3388.8,3387.7,3.50479]
[1641487625899,0.384419,3388.8,3387.7,2.00479]
[1641487628398,1.47563578,3388.6,3387.7,2.00479]
[1641487628597,1.5,3388.5,3387.7,2.00479]
[1641487628799,0.397182,3388.4,3387.7,2.00479]
[1641487629500,2.401972,3388.4,3387.7,2.00479]
[1641487630399,15.041972,3388.4,3387.7,2.00479]
[1641487632701,13.037182,3388.4,3386.8,1.72405924]
[1641487632901,13.037182,3388.4,3387.3,1.5]
[1641487633504,2.401972,3388.4,3387.6,2.00479]
[1641487633706,2.401972,3388.4,3387.7,0.781654]
[1641487633906,2.00479,3388.4,3387.9,1.5]
[1641487634106,2.00479,3388.4,3387.7,0.384472]
[1641487634306,2.00479,3388.4,3388.0,0.397182]
[1641487635408,2.00479,3388.4,3388.0,2.401972]
[1641487637508,2.00479,3388.4,3388.0,0.397182]
[1641487640313,2.9638792,3389.1,3388.3,1.5]
[1641487640513,2.9638792,3389.1,3388.7,1.5]
[1641487640713,0.9590892,3389.1,3388.7,1.5]
[1641487641215,8.92e-05,3389.1,3389.0,1.5]
[1641487641417,1.22834913,3389.6,3389.0,6.23118]
[1641487641612,1.22834913,3389.6,3389.5,1.5]
[1641487642214,1.22834913,3389.6,3389.5,1.897182]
[1641487642414,4.913e-05,3389.6,3389.5,1.897182]
[1641487642613,1.80367017,3389.8,3389.5,3.75597574]
[1641487643214,1.80367017,3389.8,3389.6,1.5]
[1641487643414,2.00479,3390.1,3389.6,1.5]
[1641487643613,2.00479,3390.1,3389.9,1.5]
[1641487643818,2.00479,3390.1,3389.9,2.3804]
[1641487644215,1.49439,3390.1,3390.0,0.397182]
[1641487645018,0.384419,3390.3,3390.0,0.397182]
[1641487645218,31.978,3391.4,3390.0,0.397182]
[1641487645518,2.00479,3390.7,3390.0,2.401972]
[1641487646323,0.4686853,3391.3,3390.0,0.397182]
[1641487646520,1.09359903,3391.3,3390.0,0.397182]
[1641487647521,2.00479,3391.0,3390.2,2.00479]
[1641487647722,1.80367017,3390.8,3390.3,0.781654]
[1641487648725,4.38446242,3391.0,3390.3,0.781654]
[1641487648726,0.4686853,3390.9,3390.3,0.781654]
[1641487650226,0.4686853,3390.9,3390.4,0.08568824]
[1641487650428,0.4686853,3390.9,3390.5,0.397182]
[1641487651025,1.80367017,3391.5,3390.7,1.5]
[1641487651228,1.80367017,3391.5,3390.8,0.397182]
[1641487651430,0.62491373,3391.6,3391.5,0.004]
[1641487651628,0.62491373,3391.6,3391.5,1.074172]
[1641487651828,0.62491373,3391.6,3391.5,1.471354]
[1641487652928,1.80367017,3392.0,3391.5,1.471354]
[1641487654131,2.18808917,3392.0,3391.5,1.471354]
[1641487654734,2.58527117,3392.0,3391.5,0.6897]
[1641487655032,2.58527117,3392.0,3391.5,0.004]
[1641487656733,0.781601,3392.0,3391.5,0.004]
[1641487657532,0.781601,3392.0,3391.5,0.401182]
[1641487657734,0.781601,3392.0,3391.4,2.41152296]
[1641487658334,0.781601,3392.0,3391.4,0.40673296]
[1641487660149,0.781601,3392.0,3391.5,0.384472]
[1641487660844,0.781601,3392.0,3391.4,0.40673296]
[1641487662445,0.781601,3392.0,3391.5,0.384472]
[1641487663346,2.00479,3392.3,3391.5,0.384472]
[1641487663545,0.397182,3392.2,3391.5,0.384472]
[1641487664257,0.781601,3392.2,3391.5,0.384472]
[1641487665346,0.781601,3392.2,3391.4,0.40673296]
[1641487665547,13.421601,3392.2,3391.4,0.40673296]
[1641487665946,0.781601,3392.2,3391.4,0.40673296]
[1641487667451,13.421601,3392.2,3391.4,0.40673296]
[1641487667748,13.421601,3392.2,3390.9,2.00479]
[1641487667749,1.5,3391.5,3390.9,2.00479]
[1641487667950,1.5,3391.0,3390.9,2.00479]
[1641487668148,0.459982,3391.0,3390.9,2.00479]
[1641487668649,0.857164,3391.0,3390.9,2.00479]
[1641487671650,0.857164,3391.0,3390.5,2.00479]
[1641487671851,0.857164,3391.0,3390.5,2.389262]
[1641487672053,0.397182,3391.0,3390.5,2.389262]
[1641487673254,0.397182,3391.0,3390.5,2.00479]
[1641487673454,1.5,3390.7,3389.7,33.3426]
[1641487673653,1.5,3390.7,3389.5,1.47441956]
[1641487673654,2.00479,3390.4,3389.5,1.47441956]
[1641487673855,2.00479,3390.4,3389.8,0.4676646]
[1641487674053,0.397182,3390.3,3389.9,0.384472]
[1641487675456,0.95616891,3390.2,3389.9,0.384472]
[1641487675655,0.459982,3390.1,3389.9,0.384472]
[1641487675859,0.857164,3390.1,3389.9,0.384472]
[1641487676858,0.857164,3390.1,3389.4,2.00479]
[1641487677057,0.857164,3390.1,3389.5,0.384472]
[1641487678057,0.46873647,3390.0,3389.5,0.384472]
[1641487678258,0.397182,3389.9,3389.5,0.384472]
[1641487680461,0.46875381,3389.8,3389.5,0.384472]
[1641487680661,0.459982,3389.7,3389.5,0.384472]
[1641487681263,0.46875381,3389.8,3389.5,0.384472]
[1641487681666,0.397182,3389.9,3389.5,0.384472]
[1641487683966,0.95616891,3390.1,3389.5,0.965872]
[1641487684163,0.95616891,3390.1,3389.8,1.5]
[1641487684364,0.95616891,3390.1,3390.0,1.47421959]
[1641487684565,0.95616891,3390.1,3389.7,1.4743413]
[1641487684968,0.95616891,3390.1,3389.5,0.965872]
[1641487685165,0.95616891,3390.1,3390.0,1.47421524]
[1641487685669,0.95616891,3390.5,3390.0,1.47421524]
[1641487685866,0.95616891,3390.5,3390.0,3.47900524]
[1641487687368,2.00479,3390.8,3390.0,3.47900524]
[1641487689073,2.00479,3390.8,3390.1,1.5]
[1641487689370,2.00479,3390.8,3390.2,0.384472]
[1641487689569,2.00479,3390.8,3390.2,1.229572]
[1641487690573,2.786391,3390.8,3390.2,0.384472]
[1641487690770,2.00479,3390.8,3390.3,0.13698445]
[1641487690971,2.00479,3391.1,3390.5,1.5]
[1641487691671,2.00479,3391.1,3390.8,1.5]
[1641487691873,2.00479,3391.1,3390.9,0.384472]
[1641487692273,0.95616891,3391.4,3390.9,0.384472]
[1641487693176,0.95616891,3391.4,3391.3,1.5]
[1641487693374,1.19521113,3391.6,3391.3,2.26842879]
[1641487693574,0.4685326,3391.7,3391.3,2.26842879]
[1641487693973,0.96529048,3391.8,3391.3,4.27321879]
[1641487694773,1.19521113,3392.1,3391.3,4.27321879]
[1641487694974,0.397182,3392.0,3391.3,4.27321879]
[1641487696679,0.384419,3391.9,3391.3,4.27321879]
[1641487696878,0.397182,3391.8,3391.3,2.79969]
[1641487697478,0.397182,3391.8,3391.3,0.7949]
[1641487697679,1.5,3391.7,3391.2,0.74750867]
[1641487697879,2.401972,3391.6,3391.2,0.74750867]
[1641487698081,2.401972,3391.6,3391.0,0.74750867]
[1641487699080,0.397182,3391.6,3391.0,0.74750867]
[1641487699279,1.59239313,3391.6,3390.9,2.389262]
[1641487699882,1.59239313,3391.6,3391.3,2.00479]
[1641487700081,0.459982,3391.5,3391.3,2.66009]
[1641487700279,1.59239313,3391.6,3391.3,2.66009]
[1641487700480,1.19521113,3392.0,3391.3,2.66009]
[1641487701081,1.59239313,3392.0,3391.3,2.66009]
[1641487701981,0.397182,3392.0,3391.3,2.66009]
[1641487703779,1.5,3391.5,3391.3,0.6553]
[1641487703980,0.857164,3391.4,3391.0,0.74750867]
[1641487704180,0.459982,3391.4,3391.0,0.74750867]
[1641487704581,0.397182,3391.3,3391.0,0.74750867]
[1641487704782,0.459982,3391.2,3391.0,0.74750867]
[1641487705182,0.397182,3391.1,3391.0,0.74750867]
[1641487705383,0.397182,3391.1,3390.9,2.389262]
[1641487706186,0.96656047,3391.4,3390.9,2.389262]
[1641487706383,0.96656047,3391.4,3390.9,2.950562]
[1641487706584,2.97135047,3391.6,3390.9,2.950562]
[1641487707987,0.96656047,3391.8,3391.0,0.74750867]
[1641487708189,0.96656047,3391.8,3391.4,1.5]
[1641487708593,0.96656047,3391.8,3391.7,1.47346366]
[1641487708794,1.19521113,3392.1,3391.7,2.47223566]
[1641487709593,0.96586158,3392.0,3391.7,2.47223566]
[1641487709992,0.96586158,3392.0,3391.9,2.00479]
[1641487710794,1.19521113,3392.2,3391.9,2.00479]
[1641487711195,1.19521113,3392.7,3391.9,2.00479]
[1641487711894,1.19521113,3392.7,3392.6,2.00479]
[1641487712093,1.19521113,3392.7,3392.6,2.85099]
[1641487712293,1.65519313,3392.7,3392.6,2.85099]
[1641487712693,1.19521113,3392.7,3392.6,2.85099]
[1641487713096,0.62467811,3392.9,3392.6,2.85099]
[1641487713295,1.19521113,3393.1,3392.6,2.85099]
[1641487715798,0.46841167,3393.3,3392.6,2.85099]
[1641487716201,0.46841167,3393.3,3393.1,1.5]
[1641487716401,1.167e-05,3393.3,3393.2,0.384472]
[1641487717702,2.28e-05,3393.4,3393.2,0.384472]
[1641487717903,1.80367017,3393.9,3393.3,2.97275405]
[1641487718103,1.06767017,3393.9,3393.6,1.5]
[1641487718306,0.50492125,3393.9,3393.6,1.5]
[1641487718709,0.50492125,3393.9,3393.8,1.47254369]
[1641487719508,0.96490325,3393.9,3393.8,1.47254369]
[1641487719708,0.459982,3393.9,3393.3,5.48236225]
[1641487719907,0.459982,3393.9,3393.3,4.00958]
[1641487720308,0.857164,3393.9,3393.3,4.00958]
[1641487720510,0.397182,3393.9,3393.3,4.00958]
[1641487720910,2.498182,3393.9,3393.3,4.00958]
[1641487721314,0.998182,3393.9,3393.3,4.00958]
[1641487721711,1.382601,3393.9,3393.3,4.00958]
[1641487721911,0.998182,3393.9,3393.3,4.00958]
[1641487724114,3.002972,3393.9,3393.3,2.00479]
[1641487724613,3.387391,3393.9,3393.3,2.00479]
[1641487725814,3.002972,3393.9,3393.3,2.00479]
[1641487726014,2.60579,3393.9,3393.3,2.00479]
[1641487726215,2.60579,3393.9,3393.3,2.56709]
[1641487726617,2.60579,3393.9,3393.3,4.0398614]
[1641487726816,2.60579,3393.9,3393.3,2.56709]
[1641487727417,2.60579,3393.9,3393.4,0.18941238]
[1641487728118,0.601,3393.9,3393.4,0.18941238]
[1641487728318,2.00479,3394.3,3393.4,0.18941238]
[1641487731425,2.00479,3394.6,3393.4,0.18941238]
[1641487731622,1.5,3394.6,3393.4,0.18941238]
[1641487732023,1.5,3394.6,3394.1,2.00479]
[1641487732222,0.397182,3394.5,3394.1,2.389262]
[1641487733225,2.00479,3394.9,3394.1,2.389262]
[1641487733425,0.397182,3394.8,3394.1,2.389262]
[1641487735128,0.384419,3394.7,3394.1,2.389262]
[1641487735627,0.397182,3394.6,3394.1,2.389262]
[1641487736929,1.897182,3394.6,3394.1,2.389262]
[1641487737228,0.397182,3394.6,3394.1,2.389262]
[1641487740536,0.397182,3394.6,3394.1,0.00688404]
[1641487744438,2.97320751,3394.2,3392.8,1.47299919]
[1641487744640,1.5,3393.5,3392.8,1.47299919]
[1641487744939,0.781601,3393.4,3392.8,1.85747119]
[1641487745238,0.781601,3393.4,3392.8,1.47299919]
[1641487745439,0.781601,3393.4,3392.4,32.4447]
[1641487745741,1.24993063,3393.4,3392.9,1.05581641]
[1641487745950,2.20629451,3393.4,3392.9,1.05581641]
[1641487746142,2.00479,3393.3,3392.9,1.05581641]
[1641487746340,2.401972,3393.3,3392.9,1.05581641]
[1641487747341,2.401972,3393.3,3393.1,0.74750867]
[1641487747543,0.459982,3393.2,3393.1,0.74750867]
[1641487748643,0.46834726,3393.2,3392.8,0.74750867]
[1641487748845,0.397182,3393.1,3392.8,0.74750867]
[1641487751045,0.459982,3393.0,3392.8,0.74750867]
[1641487751247,0.397182,3392.9,3392.8,8.67e-06]
[1641487751447,0.397182,3392.9,3392.2,0.62442155]
[1641487751647,1.5,3392.6,3392.2,0.62442155]
[1641487751851,1.5,3392.6,3391.5,2.46300053]
[1641487752048,0.397182,3392.5,3391.6,1.84836366]
[1641487752248,2.401972,3392.5,3391.8,2.00479]
[1641487753049,0.384419,3392.4,3391.8,2.00479]
[1641487753248,0.384419,3392.4,3391.8,2.389262]
[1641487754453,2.401972,3392.5,3391.8,2.389262]
[1641487755849,2.00479,3392.5,3391.8,2.389262]
[1641487756450,2.00479,3392.5,3391.9,4.0]
[1641487756648,2.00479,3392.5,3391.9,16.64]
[1641487757252,0.95636388,3392.8,3391.9,16.64]
[1641487757649,0.95636388,3392.9,3391.9,16.64]
[1641487758149,2.96115388,3392.9,3392.2,2.00479]
[1641487758350,3.35833588,3392.9,3392.2,2.00479]
[1641487758750,2.401972,3392.9,3392.2,2.00479]
[1641487762953,0.384419,3392.8,3392.2,2.00479]
[1641487763155,2.401972,3392.9,3392.2,2.00479]
[1641487763854,2.00479,3392.9,3392.2,14.64479]
[1641487764056,2.96115388,3393.3,3392.6,16.64]
[1641487764257,2.96115388,3393.3,3392.7,0.384472]
[1641487764859,0.95636388,3393.3,3392.7,0.384472]
[1641487765262,1.34078288,3393.3,3392.7,0.384472]
[1641487765463,2.00479,3393.7,3392.7,0.384472]
[1641487765761,2.00479,3393.7,3392.8,4.0]
[1641487766164,2.00479,3393.7,3392.9,2.00479]
[1641487769564,2.00479,3393.7,3393.1,1.47287769]
[1641487771468,2.00479,3393.7,3393.1,2.218869]
[1641487774470,0.95636388,3394.4,3393.4,16.64]
[1641487774670,0.95636388,3394.4,3394.0,4.0]
[1641487774870,0.95636388,3394.4,3394.1,0.384472]